{"text_format":"1","workbook":"xlsx","n_sheets":13,"sheets":["README","Project Information and TOC","General Considerations","General Drawings","Civil Drawings","Structural Drawings","Instrumentation Drawings","Miscellaneous Drawings","Project Specific Drawings","Agency Specific Drawings","References","Comment Tracking","OPTIONBOX"],"not_rendered":{"charts":0,"images":5,"macros":1,"external_links":0,"defined_names":24,"comments":0,"pivot_tables":0},"unopened":[],"bounds":{"document_bytes":16777216,"sheet_cells":100000,"rows_first":2000,"rows_last":500,"rows_between":2000,"halvings":0,"cell_chars":16384,"cell_head_chars":4096},"cells_cut":0,"cells_raw":0,"read":"whole","date_system":"1900"}

{"sheet":"README","index":0,"n_rows":28,"n_cols":5,"rows_kept":28,"cut":false,"hidden":false,"merged":[[2,3,3,3],[3,1,8,1]]}
[null,"Construction Plan Review Toolbox","Version:","01"]
[]
[null,"Disclaimer:",null,"Begin"]
[null,"This construction plan review toolbox is for general information only. The intent is to provide a checklist and guidance on some key work items expected to be included in a plan set for dam construction based on the experience of the authors and the review board, comprised of Dam Design Engineers and State Dam Safety Officials, and has been prepared in accordance with generally recognized engineering principles and practices. The toolbox is not intended to be a comprehensive or inclusive list of all items that need to be included in a complete plan set for dam construction. The information presented should not be used without first securing competent advice from qualified professionals with respect to its suitability for any general or specific application.  Regardless of completion of the checklist, generating a complete design, including detailed plan set, remains the responsibility of the responsible Design Engineer.  No reference made in this publication constitutes an endorsement or warranty thereof by AECOM or sponsors of this Toolbox. Anyone using the information presented in this Toolbox assumes all liability arising from such use."]
[]
[null,null,null,"Developed by: ","AECOM-Denver"]
[]
[null,null,null,"Developed using:","Microsoft Excel 365, Version 2008 (Build 13127.21064 Click-to-Run)"]
[]
[]
[null,"Instructions / Guide:"]
[]
[null,"1. Inputs go into cells shaded in this color."]
[null,"2. The \"Project Information and TOC\" tab provides a summary of the spreadsheet content. Project-specific information entered on that tab will be automatically entered in the remaining sheets."]
[null,"3. Following the \"Project Information and TOC\" tab is a tab for \"General Considerations\" that the engineer may wish to consider throughout construction plan development. "]
[null,"4. Each major drawing discipline feature selected for inclusion in this version of the toolbox has a separate tab, shaded yellow. These are selected features and are not all-inclusive.  The major drawing discipline work tabs contain a checklist of general drawing requirements for that discipline and considerations that the engineer may wish to incorporate as appropriate for the specific project."]
[null,"5.  Following the major construction item tabs, are the tabs for  \"Project Specific Drawings\" and \"Agency Specific Drawings\". These can be tailored to the User's and Reviewers' specific project drawing needs"]
[null,"6. The references tab provides a set of useful references relevant to construction plan development. "]
[null,"7. The common drawing requirements in each drawing tab includes a \"N/A\" button that can be used to mark all non-applicable sub-requirements as \"N/A\"."]
[null,"8. The common drawing requirements in each drawing tab includes a pull-down button in each of the column headings that can be used to filter and sort the content in that column."]
[]
[null,"Email address to send comments "]
[null,"dnrdamsafety@mt.gov"]
[]
[]
[null,"Version History:","Date:"]
[null,"Beta 01:     Initital release. For review and comment","May 2021"]
[null,"01:     Incorporated comments from Montana DNRC for final review and release of 01 Version.","June 2021"]

{"sheet":"Project Information and TOC","index":1,"n_rows":88,"n_cols":3,"rows_kept":88,"cut":false,"hidden":false,"merged":[[54,1,54,2],[27,1,27,2],[0,0,1,1],[0,4,1,4],[36,1,36,2],[47,1,47,2]]}
[]
[]
[null,"Dam Name/ID: ","Dam Name"]
[null,"Project Name: ","Project Name"]
[null,"Date:","xx/xx/20xx"]
[null,"Owner:","Dam Owner"]
[null,"Engineer:","Engineer"]
[null,"Completion Status:",1]
[null,"Reviewer (s):","Reviewers"]
[null,"Description/Comments:","Version 01 released June 2021"]
[]
[null,"General Considerations","\"General Considerations\" that the engineer may wish to consider throughout construction plan set development"]
[null,{"$f":"'General Considerations'!A6","v":"Drawing Numbers"},{"$f":"HYPERLINK(CONCATENATE(\"#\",\"'\",$B$12,\"'!A\",MATCH(B13,INDIRECT(CONCATENATE(\"'\",$B$12,\"'!A1:A500\")),0)),\"Go to Section\")","v":"Go to Section"}]
[null,{"$f":"'General Considerations'!A7","v":"Drawing Titles"},{"$f":"HYPERLINK(CONCATENATE(\"#\",\"'\",$B$12,\"'!A\",MATCH(B14,INDIRECT(CONCATENATE(\"'\",$B$12,\"'!A1:A500\")),0)),\"Go to Section\")","v":"Go to Section"}]
[null,{"$f":"'General Considerations'!A8","v":"Drawing Scales"},"Go to Section"]
[null,{"$f":"'General Considerations'!A9","v":"North Arrow"},"Go to Section"]
[null,{"$f":"'General Considerations'!A10","v":"Contour Interval"},"Go to Section"]
[null,{"$f":"'General Considerations'!A11","v":"Plan Views"},"Go to Section"]
[null,{"$f":"'General Considerations'!A12","v":"Profiles and Cross Sections"},"Go to Section"]
[null,{"$f":"'General Considerations'!A13","v":"Graphs and Profiles"},"Go to Section"]
[null,{"$f":"'General Considerations'!A14","v":"Tables"},"Go to Section"]
[null,{"$f":"'General Considerations'!A15","v":"Notes"},"Go to Section"]
[null,{"$f":"'General Considerations'!A16","v":"Dates"},"Go to Section"]
[null,{"$f":"'General Considerations'!A17","v":"Text"},"Go to Section"]
[null,{"$f":"'General Considerations'!A18","v":"(User Defined Item)"},"Go to Section"]
[null,{"$f":"'General Considerations'!A19","v":"(User Defined Item)"},"Go to Section"]
[null,{"$f":"'General Considerations'!A20","v":"(User Defined Item)"},"Go to Section"]
[]
[null,"General Drawings","Covers some common general drawing requirements"]
[null,{"$f":"'General Drawings'!A6","v":"Cover Sheet"},{"$f":"HYPERLINK(CONCATENATE(\"#\",\"'\",$B$29,\"'!A\",MATCH(B30,INDIRECT(CONCATENATE(\"'\",$B$29,\"'!A1:A500\")),0)),\"Go to Section\")","v":"Go to Section"}]
[null,{"$f":"'General Drawings'!A13","v":"Existing Conditions - Dam and Reservoir Plan View"},{"$f":"HYPERLINK(CONCATENATE(\"#\",\"'\",$B$29,\"'!A\",MATCH(B31,INDIRECT(CONCATENATE(\"'\",$B$29,\"'!A1:A500\")),0)),\"Go to Section\")","v":"Go to Section"}]
[null,{"$f":"'General Drawings'!A21","v":"Site Topography"},"Go to Section"]
[null,{"$f":"'General Drawings'!A26","v":"Staging Areas and Borrow Sites"},"Go to Section"]
[null,{"$f":"'General Drawings'!A31","v":"Site Subsurface Conditions"},"Go to Section"]
[null,{"$f":"'General Drawings'!A36","v":"(User Defined Item)"},"Go to Section"]
[null,{"$f":"'General Drawings'!A41","v":"(User Defined Item)"},{"$f":"HYPERLINK(CONCATENATE(\"#\",\"'\",$B$29,\"'!A\",MATCH(B36,INDIRECT(CONCATENATE(\"'\",$B$29,\"'!A1:A500\")),0)),\"Go to Section\")","v":"Go to Section"}]
[]
[null,"Civil Drawings","Covers some common civil design features in civil drawings"]
[null,{"$f":"'Civil Drawings'!A6","v":"Plan View of Modifications"},{"$f":"HYPERLINK(CONCATENATE(\"#\",\"'\",$B$38,\"'!A\",MATCH(B39,INDIRECT(CONCATENATE(\"'\",$B$38,\"'!A1:A500\")),0)),\"Go to Section\")","v":"Go to Section"}]
[null,{"$f":"'Civil Drawings'!A11","v":"Stream Diversion / Cofferdam"},{"$f":"HYPERLINK(CONCATENATE(\"#\",\"'\",$B$38,\"'!A\",MATCH(B40,INDIRECT(CONCATENATE(\"'\",$B$38,\"'!A1:A500\")),0)),\"Go to Section\")","v":"Go to Section"}]
[null,{"$f":"'Civil Drawings'!A16","v":"Demolition / Excavation Plan"},"Go to Section"]
[null,{"$f":"'Civil Drawings'!A21","v":"Embankment Modifications"},"Go to Section"]
[null,{"$f":"'Civil Drawings'!A26","v":"Spillway Modifications"},"Go to Section"]
[null,{"$f":"'Civil Drawings'!A34","v":"Outlet Works Modifications"},"Go to Section"]
[null,{"$f":"'Civil Drawings'!A42","v":"Seepage Collection System"},"Go to Section"]
[null,{"$f":"'Civil Drawings'!A47","v":"(User Defined Item)"},"Go to Section"]
[null,{"$f":"'Civil Drawings'!A52","v":"(User Defined Item)"},"Go to Section"]
[]
[null,"Structural Drawings","Covers some common structural design features in structural drawings"]
[null,{"$f":"'Structural Drawings'!A6","v":"Structural Notes, Abbreviations & Details"},{"$f":"HYPERLINK(CONCATENATE(\"#\",\"'\",$B$49,\"'!A\",MATCH(B50,INDIRECT(CONCATENATE(\"'\",$B$49,\"'!A1:A500\")),0)),\"Go to Section\")","v":"Go to Section"}]
[null,{"$f":"'Structural Drawings'!A11","v":"Concrete Structures"},{"$f":"HYPERLINK(CONCATENATE(\"#\",\"'\",$B$49,\"'!A\",MATCH(B51,INDIRECT(CONCATENATE(\"'\",$B$49,\"'!A1:A500\")),0)),\"Go to Section\")","v":"Go to Section"}]
[null,{"$f":"'Structural Drawings'!A16","v":"Steel Structures"},"Go to Section"]
[null,{"$f":"'Structural Drawings'!A21","v":"(User Defined Item)"},"Go to Section"]
[null,{"$f":"'Structural Drawings'!A26","v":"(User Defined Item)"},"Go to Section"]
[]
[null,"Instrumentation Drawings","Covers some common instrumentation design features in instrumentation drawings"]
[null,{"$f":"'Instrumentation Drawings'!A6","v":"Instrumentation Plan"},{"$f":"HYPERLINK(CONCATENATE(\"#\",\"'\",$B$56,\"'!A\",MATCH(B57,INDIRECT(CONCATENATE(\"'\",$B$56,\"'!A1:A500\")),0)),\"Go to Section\")","v":"Go to Section"}]
[null,{"$f":"'Instrumentation Drawings'!A11","v":"Staff Gages"},{"$f":"HYPERLINK(CONCATENATE(\"#\",\"'\",$B$56,\"'!A\",MATCH(B58,INDIRECT(CONCATENATE(\"'\",$B$56,\"'!A1:A500\")),0)),\"Go to Section\")","v":"Go to Section"}]
[null,{"$f":"'Instrumentation Drawings'!A16","v":"Piezometers"},"Go to Section"]
[null,{"$f":"'Instrumentation Drawings'!A21","v":"Survey Monuments and Benchmarks"},"Go to Section"]
[null,{"$f":"'Instrumentation Drawings'!A26","v":"Seepage Weirs"},"Go to Section"]
[null,{"$f":"'Instrumentation Drawings'!A31","v":"Station Markers"},"Go to Section"]
[null,{"$f":"'Instrumentation Drawings'!A36","v":"(User Defined Item)"},"Go to Section"]
[null,{"$f":"'Instrumentation Drawings'!A41","v":"(User Defined Item)"},"Go to Section"]
[]
[null,"Miscellaneous Drawings","Covers miscellaneous design features needed for the specific project"]
[null,{"$f":"'Miscellaneous Drawings'!A6","v":"(User Defined Item)"},{"$f":"HYPERLINK(CONCATENATE(\"#\",\"'\",$B$66,\"'!A\",MATCH(B67,INDIRECT(CONCATENATE(\"'\",$B$66,\"'!A1:A500\")),0)),\"Go to Section\")","v":"Go to Section"}]
[null,{"$f":"'Miscellaneous Drawings'!A11","v":"(User Defined Item)"},{"$f":"HYPERLINK(CONCATENATE(\"#\",\"'\",$B$66,\"'!A\",MATCH(B68,INDIRECT(CONCATENATE(\"'\",$B$66,\"'!A1:A500\")),0)),\"Go to Section\")","v":"Go to Section"}]
[null,{"$f":"'Miscellaneous Drawings'!A16","v":"(User Defined Item)"},"Go to Section"]
[null,{"$f":"'Miscellaneous Drawings'!A21","v":"(User Defined Item)"},"Go to Section"]
[null,{"$f":"'Miscellaneous Drawings'!A26","v":"(User Defined Item)"},"Go to Section"]
[]
[null,"Project Specific Drawings","Covers project specific design drawing features"]
[null,{"$f":"'Project Specific Drawings'!A6","v":"(User Defined Item)"},{"$f":"HYPERLINK(CONCATENATE(\"#\",\"'\",$B$73,\"'!A\",MATCH(B74,INDIRECT(CONCATENATE(\"'\",$B$73,\"'!A1:A500\")),0)),\"Go to Section\")","v":"Go to Section"}]
[null,{"$f":"'Project Specific Drawings'!A11","v":"(User Defined Item)"},{"$f":"HYPERLINK(CONCATENATE(\"#\",\"'\",$B$73,\"'!A\",MATCH(B75,INDIRECT(CONCATENATE(\"'\",$B$73,\"'!A1:A500\")),0)),\"Go to Section\")","v":"Go to Section"}]
[null,{"$f":"'Project Specific Drawings'!A16","v":"(User Defined Item)"},"Go to Section"]
[null,{"$f":"'Project Specific Drawings'!A21","v":"(User Defined Item)"},"Go to Section"]
[null,{"$f":"'Project Specific Drawings'!A26","v":"(User Defined Item)"},"Go to Section"]
[]
[null,"Agency Specific Drawings","Covers agency specific design drawing features"]
[null,{"$f":"'Agency Specific Drawings'!A6","v":"(User Defined Item)"},{"$f":"HYPERLINK(CONCATENATE(\"#\",\"'\",$B$80,\"'!A\",MATCH(B81,INDIRECT(CONCATENATE(\"'\",$B$80,\"'!A1:A500\")),0)),\"Go to Section\")","v":"Go to Section"}]
[null,{"$f":"'Agency Specific Drawings'!A11","v":"(User Defined Item)"},{"$f":"HYPERLINK(CONCATENATE(\"#\",\"'\",$B$80,\"'!A\",MATCH(B82,INDIRECT(CONCATENATE(\"'\",$B$80,\"'!A1:A500\")),0)),\"Go to Section\")","v":"Go to Section"}]
[null,{"$f":"'Agency Specific Drawings'!A16","v":"(User Defined Item)"},"Go to Section"]
[null,{"$f":"'Agency Specific Drawings'!A21","v":"(User Defined Item)"},"Go to Section"]
[null,{"$f":"'Agency Specific Drawings'!A26","v":"(User Defined Item)"},"Go to Section"]
[]
[null,"References","A set of useful references relevant to drawing development"]
[null,{"$f":"References!A4","v":"References"},{"$f":"HYPERLINK(CONCATENATE(\"#\",\"'\",$B$87,\"'!A\",MATCH(B88,INDIRECT(CONCATENATE(\"'\",$B$87,\"'!A1:A500\")),0)),\"Go to Section\")","v":"Go to Section"}]

{"sheet":"General Considerations","index":2,"n_rows":20,"n_cols":8,"rows_kept":20,"cut":false,"hidden":false,"merged":[[3,0,3,7]]}
[null,{"$f":"'Project Information and TOC'!B3","v":"Dam Name/ID: "},null,{"$f":"IF(ISBLANK('Project Information and TOC'!C3),\"\",'Project Information and TOC'!C3)","v":"Dam Name"},{"$f":"'Project Information and TOC'!B6","v":"Owner:"},{"$f":"'Project Information and TOC'!C6","v":"Dam Owner"}]
[null,{"$f":"'Project Information and TOC'!B4","v":"Project Name: "},null,{"$f":"IF(ISBLANK('Project Information and TOC'!C4),\"\",'Project Information and TOC'!C4)","v":"Project Name"},{"$f":"'Project Information and TOC'!B7","v":"Engineer:"},{"$f":"'Project Information and TOC'!C7","v":"Engineer"}]
[null,{"$f":"'Project Information and TOC'!B5","v":"Date:"},null,{"$f":"IF(ISBLANK('Project Information and TOC'!C5),\"\",'Project Information and TOC'!C5)","v":"xx/xx/20xx"},{"$f":"'Project Information and TOC'!B8","v":"Completion Status:"},{"$f":"'Project Information and TOC'!C8","v":1}]
["General Considerations"]
["Item","Description","Design Stage","Complete?\nYES, NO, N/A","Reviewer Comments","Engineer Responses","Reviewer Follow-Up Comments","Resolved?"]
["Drawing Numbers","Sequential drawing numbers shown for each sheet and total number of sheets included with each sheet?"]
["Drawing Titles","Dam and project name shown on each sheet? Separate titles for each sheet, figure and plan view?"]
["Drawing Scales","Scales provided in bar format so they can be scaled if not printed to scale? Separate horizontal and vertical scales provided where applicable?"]
["North Arrow","All plan views include North arrow?"]
["Contour Interval","Contour interval 1-foot or scaled relative to overall project dimensions?"]
["Plan Views","Reservoir shown at top of view (water \"flow\" from top to bottom ?)"]
["Profiles and Cross Sections","Profiles and cross sections show reservoir at left side of view (water \"flow\" from left to right)?"]
["Graphs and Profiles","Graphs/profiles have each axis labeled and scale(s) provided?"]
["Tables","Tables include header and units for each column?"]
["Notes","Notes with specification information need to be removed or not in conflict with project specifications?"]
["Dates","Date on each sheet, and dates on all sheets are same?"]
["Text","All text legible?"]
["(User Defined Item)"]
["(User Defined Item)"]
["(User Defined Item)"]

{"sheet":"General Drawings","index":3,"n_rows":45,"n_cols":9,"rows_kept":45,"cut":false,"hidden":false,"merged":[[12,0,19,0],[5,0,11,0],[3,0,3,8],[30,0,34,0],[40,0,44,0],[35,0,39,0],[25,0,29,0],[20,0,24,0]]}
[null,{"$f":"'Project Information and TOC'!$B3","v":"Dam Name/ID: "},null,{"$f":"IF(ISBLANK('Project Information and TOC'!C3),\"\",'Project Information and TOC'!C3)","v":"Dam Name"},{"$f":"'Project Information and TOC'!B6","v":"Owner:"},{"$f":"'Project Information and TOC'!C6","v":"Dam Owner"}]
[null,{"$f":"'Project Information and TOC'!$B4","v":"Project Name: "},null,{"$f":"IF(ISBLANK('Project Information and TOC'!C4),\"\",'Project Information and TOC'!C4)","v":"Project Name"},{"$f":"'Project Information and TOC'!B7","v":"Engineer:"},{"$f":"'Project Information and TOC'!C7","v":"Engineer"}]
[null,{"$f":"'Project Information and TOC'!$B5","v":"Date:"},null,{"$f":"IF(ISBLANK('Project Information and TOC'!C5),\"\",'Project Information and TOC'!C5)","v":"xx/xx/20xx"},{"$f":"'Project Information and TOC'!B8","v":"Completion Status:"},{"$f":"'Project Information and TOC'!C8","v":1}]
["General Drawings Review Checklist"]
["Item","Typically Required Drawing Content","Design Stage","YES, NO, N/A","Reference","Reviewer Comments","Engineer Responses","Reviewer Follow-Up Comments","Resolved?"]
["Cover Sheet","Project Name?",null,null,"36.14.306 (1)(b)(i)"]
[null,"Dam name and ID (NID and State ID, if available), county, State,  water district (if applicable) shown?",null,null,"N/A"]
[null,"Prepared for (dam owner) and prepared by (name of engineering firm) shown?",null,null,"36.14.306 (1)(b)(i)"]
[null,"Drawing date shown?",null,null,"N/A"]
[null,"List of drawings and drawing numbers match numbers on sheets?",null,null,"36.14.306 (1)(b)(i)"]
[null,"State, vicinity, and location maps, including designated access to the site, location with respect to highways, roads, streams, major population center, and dam(s) that are affected by the project?",null,null,"36.14.306 (1)(b)"]
[null,"Certification by design engineer and owner?",null,null,"36.14.306 (1)(b)(i)"]
["Existing Conditions - Dam and Reservoir Plan View","Stage-storage curve and table, covering bottom of reservoir to top of dam crest, invert of low-level oultet and spillway(s) included?  Dimensions in acres for area and acre-feet for storage?",null,null,"36.14.306 (1)(b)"]
[null,"High and/or normal waterline contour shown?",null,null,"N/A"]
[null,"Site access shown? Access roads and gates/access restrictions shown?",null,null,"N/A"]
[null,"Reservoir name (possibly different from dam) shown?",null,null,"N/A"]
[null,"Legend and abbreviations included?",null,null,"N/A"]
[null,"Existing dam centerline stationing shown? Starting with 0+00 at left abutment with increasing stationing to right abutment (or other stationing layout justified)?",null,null,"N/A"]
[null,"Existing structures (outlet works, spillway(s), etc.) and other major features (slope protection extent, instrumentation) shown and labeled?",null,null,"N/A"]
[null,"Existing buried and overhead utilities shown?",null,null,"N/A"]
["Site Topography","Source (survying firm), method of survey (topohrapgic, Lidar, etc.) and date of survey (and aerials photography, if applicable)?",null,null,"36.14.306 (1)(b)"]
[null,"Horizontal and vertical survey datum listed?",null,null,"N/A"]
[null,"Contour interval sufficient for scale of project?",null,null,"N/A"]
[null,"Existing benchmarks and survey control points (elevation and coordinate information?)",null,null,"N/A"]
[null,null,null,null,"N/A"]
["Staging Areas and Borrow Sites","Areas outlined and defined? Sufficient area for staging and stockpiling relative to project?",null,null,"36.14.306 (1)(b)"]
[null,"Profile along borrow area(s) shown, including depth of available material and possible overburden?",null,null,"36.14.306 (1)(b)"]
[null,"Haul routes shown?",null,null,"N/A"]
[null,null,null,null,"N/A"]
[null,null,null,null,"N/A"]
["Site Subsurface Conditions","Location of test pits and boring locations shown in plan view and labeled?",null,null,"36.14.306 (1)(b)"]
[null,"Summary logs provided, differentiating materials and goundwater and blow count (SPT) included?",null,null,"N/A"]
[null,"Legend for summary logs provided describing encoutered materials?",null,null,"N/A"]
[null,"Representative cross sections (maximum section, along outlet works) and/or profiles (along dam centerline) shown and material zones identified? Estimated top of bedrock shown?",null,null,"N/A"]
[null,null,null,null,"N/A"]
["(User Defined Item)",null,null,null,"N/A"]
[null,null,null,null,"N/A"]
[null,null,null,null,"N/A"]
[null,null,null,null,"N/A"]
[null,null,null,null,"N/A"]
["(User Defined Item)",null,null,null,"N/A"]
[null,null,null,null,"N/A"]
[null,null,null,null,"N/A"]
[null,null,null,null,"N/A"]
[null,null,null,null,"N/A"]

{"sheet":"Civil Drawings","index":4,"n_rows":56,"n_cols":9,"rows_kept":56,"cut":false,"hidden":false,"merged":[[33,0,40,0],[46,0,50,0],[41,0,45,0],[51,0,55,0],[3,0,3,8],[5,0,9,0],[10,0,14,0],[15,0,19,0],[20,0,24,0],[25,0,32,0]]}
[null,{"$f":"'Project Information and TOC'!$B3","v":"Dam Name/ID: "},{"$f":"IF(ISBLANK('Project Information and TOC'!C3),\"\",'Project Information and TOC'!C3)","v":"Dam Name"},null,{"$f":"'Project Information and TOC'!B6","v":"Owner:"},{"$f":"'Project Information and TOC'!C6","v":"Dam Owner"}]
[null,{"$f":"'Project Information and TOC'!$B4","v":"Project Name: "},{"$f":"IF(ISBLANK('Project Information and TOC'!C4),\"\",'Project Information and TOC'!C4)","v":"Project Name"},null,{"$f":"'Project Information and TOC'!B7","v":"Engineer:"},{"$f":"'Project Information and TOC'!C7","v":"Engineer"}]
[null,{"$f":"'Project Information and TOC'!$B5","v":"Date:"},{"$f":"IF(ISBLANK('Project Information and TOC'!C5),\"\",'Project Information and TOC'!C5)","v":"xx/xx/20xx"},null,{"$f":"'Project Information and TOC'!B8","v":"Completion Status:"},{"$f":"'Project Information and TOC'!C8","v":1}]
["Civil Drawings Review Checklist"]
["Item","Typically Required Drawing Content","Design Stage","YES, NO, N/A","Reference","Reviewer Comments","Engineer Responses","Reviewer Follow-Up Comments","Resolved?"]
["Plan View of Modifications","Plan view includes footprint of dam and delineation of proposed modifications?",null,null,"36.14.306 (1)(b)"]
[null,"All major modification features called out and reference to additional drawings with more details provided?",null,null,"N/A"]
[null,"Dam centerline stationing shown?",null,null,"N/A"]
[null,null,null,null,"N/A"]
[null,null,null,null,"N/A"]
["Stream Diversion / Cofferdam","Plan view and sufficient profile/cross section and detail provided for diversion/detention system?",null,null,"36.14.306 (1)(b)"]
[null,"Level of protection shown (estimated expected water elevation for flood level)?",null,null,"N/A"]
[null,"Conduits and control features called out and sized adequately?",null,null,"N/A"]
[null,"Sequence of diversion outlined in notes?",null,null,"N/A"]
[null,null,null,null,"N/A"]
["Demolition / Excavation Plan","Excavation Plan view, sections and details included?",null,null,"36.14.306 (1)(b)"]
[null,"Demolition plan view, section and details included?",null,null,"N/A"]
[null,"Foundation and abutment treatment details and notes included?",null,null,"N/A"]
[null,null,null,null,"N/A"]
[null,null,null,null,"N/A"]
["Embankment Modifications","Plan View Showing:\n- extent of modifications?\n- extent of existing or proposed upstream slope protection?\n- slopes of existing or proposed upstream and downstream faces?\n- extent and width of dam crest?\n- location and extent of drainage and filter features?",null,null,"36.14.306 (1)(b)"]
[null,"Profile along Dam Axis and Others as Needed Showing:\n- existing and proposed dam crest elevation?\n- foundation profile and anticipated geologic material types?\n- grouting or drain hole locations, orientation and depth (if applicable)?",null,null,"36.14.306 (1)(b)"]
[null,"Cross section(s) shown for maximum section, along outlet works, along spillway(s) and additional locations needed to delineate embankment?",null,null,"36.14.306 (1)(b)"]
[null,"Cross Section(s) Showing:\n- Existing and proposed dam crest elevation?\n- Elevations of normal and maximum reservoir water elevations? \n- Slopes of upstream and downstream faces?\n- Location, material type and dimensions of core? \n- Locations, material type and dimensions of pervious, semi-pervious and impervious embankment materials?\n- Locations, material type and dimensions of drainage facilities, including filters,\n- Foundation profile and anticipated geologic material types?\n- Location, material type and dimemsions of slope protection?",null,null,"36.14.306 (1)(b)"]
[null,null,null,null,"N/A"]
["Spillway Modifications","Plan View Showing:\n- Full extent of spillway?\n- Extent and type of modifications?\n- Spillway stationing and centerline geometry information (slopes and curvature)?\n- Erosion protection (bottom and sides) extent and material type?\n- Energy dissipator structure location and material?\n- Location and size of foundation drains (if applicable)?",null,null,"36.14.306 (1)(b)"]
[null,"Profile Showing:\n- Existing and proposed ground/spillway invert line?\n- Proposed slope(s)?\n- Invert elevations at approach, crest, control structures, discharge?\n- Erosion protection (along bottom) extent and material type?\n- Materials for structure(s) if not earth/rock cut?",null,null,"N/A"]
[null,"Cross Section(s) Showing:\n- Existing and proposed ground/spillway invert line and elelvation?\n- Proposed side slope(s)?\n- Erosion protection (bottom and sides) extent and material type?\n- Materials for structure(s) if not earth/rock cut?",null,null,"N/A"]
[null,"Energy Dissipator (Impact Basin) Details including:\n- Size and material type?\n- Connection details to adjacent spillway chute and downstream channel?",null,null,"36.14.306 (1)(b)"]
[null,"Spillway rating curve and table, in 1-ft increments between spillway control and dam crest, calling out spillway and dam crest elevations?",null,null,"N/A"]
[null,"Details and cross sections of structural features (walls, baffle blocks, weirs, etc.)?",null,null,"N/A"]
[null,"Access for maintenance included and adequate (stairs, ramps, ladders, etc.)?",null,null,"N/A"]
[null,"Public safety protection features included and adequate (handrails, grates, fencing)?",null,null,"N/A"]
["Outlet Works Modifications","Plan View Showing:\n- Full extent of outlet works?\n- Extent and type of modifications?\n- Outlet works stationing and centerline geometry information (slopes and curvature, if applicable)?\n- Intake structure location and type?\n- Control structure, size and type?\n- Conduit size and material type?\n- Discharge structure location and type?",null,null,"36.14.306 (1)(b)"]
[null,"Profile Showing:\n- Intake structure and invert elelvation?\n- Control structure and invert elelvation?\n- Conduit size, type, inlet and outlet invert elevations, and slope(s)?\n- Filter diapghragm(s) dimensions and materials?",null,null,"36.14.306 (1)(b)"]
[null,"Cross Section(s) Showing:\n- Conduit placement in embankment/on foundation?\n- Filter diaphragm dimensions relative to conduit?",null,null,"36.14.306 (1)(b)"]
[null,"Details for:\n- Trashrack?\n- Control structure (valve(s) or gate(s))?\n- Vent pipe(s)?\n- Impact basin/energy dissipation?\n- Discharge structure drains?",null,null,"36.14.306 (1)(b)"]
[null,"Outlet works rating curve and table, in 1-ft increments between outlet invert and dam crest, calling out outlet invert(s), spillway crest(s), and dam crest elevations?",null,null,"N/A"]
[null,"Details and cross sections of structural features?",null,null,"N/A"]
[null,"Access for maintenance included and adequate (stairs, ramps, ladders, etc.)?",null,null,"N/A"]
[null,"Public safety protection features included and adequate (handrails, grates, fencing)?",null,null,"N/A"]
["Seepage Collection System","Plan View Showing:\n- Extent of drain zones?\n- Layout of collection pipe(s)?\n- Collection pipe(s) layout with individual bends less than  45 degrees?\n- Dimensions and material types for drain zones and pipes?\n- Control points for system layout in field?\n- Pipe cleanout(s) and pipe system access (manhole(s)) locations?\n- Discharge location?",null,null,"N/A"]
[null,"Profile Showing:\n- Invert elelvations at control point locations, pipe slope(s), material type and dimensions of collection pipe(s)?\n- Dimensions of bedding and cover materials?\n- Existing ground and proposed bottom of excavation for drain and collection system, and top of finished ground?\n- Cleanout and other access locations?",null,null,"N/A"]
[null,"Cross Sections or Details Showing:\n- Drain zones and pipe locations within embankment?\n- Sufficient bedding material below, above and adjacent to seepage collection pipes to protect pipe and provide filtering from finer materials?\n- Sufficient burial depth of drain zones and pipes to limit freeze damage?\n- Materials zoned for filter compatibility with surrounding soils?",null,null,"N/A"]
[null,"Designed with positive outfall into downstream channel and no backwater effects?",null,null,"N/A"]
[null,"Pipe dimensions adequate for expected design flow?",null,null,"N/A"]
["(User Defined Item)",null,null,null,"N/A"]
[null,null,null,null,"N/A"]
[null,null,null,null,"N/A"]
[null,null,null,null,"N/A"]
[null,null,null,null,"N/A"]
["(User Defined Item)",null,null,null,"N/A"]
[null,null,null,null,"N/A"]
[null,null,null,null,"N/A"]
[null,null,null,null,"N/A"]
[null,null,null,null,"N/A"]

{"sheet":"Structural Drawings","index":5,"n_rows":30,"n_cols":9,"rows_kept":30,"cut":false,"hidden":false,"merged":[[20,0,24,0],[25,0,29,0],[3,0,3,8],[5,0,9,0],[10,0,14,0],[15,0,19,0]]}
[null,{"$f":"'Project Information and TOC'!$B3","v":"Dam Name/ID: "},{"$f":"IF(ISBLANK('Project Information and TOC'!C3),\"\",'Project Information and TOC'!C3)","v":"Dam Name"},null,{"$f":"'Project Information and TOC'!B6","v":"Owner:"},{"$f":"'Project Information and TOC'!C6","v":"Dam Owner"}]
[null,{"$f":"'Project Information and TOC'!$B4","v":"Project Name: "},{"$f":"IF(ISBLANK('Project Information and TOC'!C4),\"\",'Project Information and TOC'!C4)","v":"Project Name"},null,{"$f":"'Project Information and TOC'!B7","v":"Engineer:"},{"$f":"'Project Information and TOC'!C7","v":"Engineer"}]
[null,{"$f":"'Project Information and TOC'!$B5","v":"Date:"},{"$f":"IF(ISBLANK('Project Information and TOC'!C5),\"\",'Project Information and TOC'!C5)","v":"xx/xx/20xx"},null,{"$f":"'Project Information and TOC'!B8","v":"Completion Status:"},{"$f":"'Project Information and TOC'!C8","v":1}]
["Structural Drawings Review Checklist"]
["Item","Typically Required Drawing Content","Design Stage","YES, NO, N/A","Reference","Reviewer Comments","Engineer Responses","Reviewer Follow-Up Comments","Resolved?"]
["Structural Notes, Abbreviations & Details","Details showing concrete einforcement?",null,null,"36.14.306 (1)(b)"]
[null,"Notes for reinforcement dimensions, cover, ebent bars, splicing, placing, spacing and standard hooks?",null,null,"N/A"]
[null,"List of abbreviations and submbols used on structural drawings.",null,null,"N/A"]
[null,null,null,null,"N/A"]
[null,null,null,null,"N/A"]
["Concrete Structures","All dimensions shown for each element (length, width, thickness)? ",null,null,"N/A"]
[null,"Top of concrete elevations shown?",null,null,"N/A"]
[null,"Joint locations and types shown?",null,null,"N/A"]
[null,null,null,null,"N/A"]
[null,null,null,null,"N/A"]
["Steel Structures","Bar and plate dimensions and shapes called out?",null,null,"N/A"]
[null,"Connection details provided (welding or mechanical)?",null,null,"N/A"]
[null,null,null,null,"N/A"]
[null,null,null,null,"N/A"]
[null,null,null,null,"N/A"]
["(User Defined Item)",null,null,null,"N/A"]
[null,null,null,null,"N/A"]
[null,null,null,null,"N/A"]
[null,null,null,null,"N/A"]
[null,null,null,null,"N/A"]
["(User Defined Item)",null,null,null,"N/A"]
[null,null,null,null,"N/A"]
[null,null,null,null,"N/A"]
[null,null,null,null,"N/A"]
[null,null,null,null,"N/A"]

{"sheet":"Instrumentation Drawings","index":6,"n_rows":45,"n_cols":9,"rows_kept":45,"cut":false,"hidden":false,"merged":[[30,0,34,0],[35,0,39,0],[40,0,44,0],[5,0,9,0],[3,0,3,8],[10,0,14,0],[15,0,19,0],[20,0,24,0],[25,0,29,0]]}
[null,{"$f":"'Project Information and TOC'!$B3","v":"Dam Name/ID: "},{"$f":"IF(ISBLANK('Project Information and TOC'!C3),\"\",'Project Information and TOC'!C3)","v":"Dam Name"},null,{"$f":"'Project Information and TOC'!B6","v":"Owner:"},{"$f":"'Project Information and TOC'!C6","v":"Dam Owner"}]
[null,{"$f":"'Project Information and TOC'!$B4","v":"Project Name: "},{"$f":"IF(ISBLANK('Project Information and TOC'!C4),\"\",'Project Information and TOC'!C4)","v":"Project Name"},null,{"$f":"'Project Information and TOC'!B7","v":"Engineer:"},{"$f":"'Project Information and TOC'!C7","v":"Engineer"}]
[null,{"$f":"'Project Information and TOC'!$B5","v":"Date:"},{"$f":"IF(ISBLANK('Project Information and TOC'!C5),\"\",'Project Information and TOC'!C5)","v":"xx/xx/20xx"},null,{"$f":"'Project Information and TOC'!B8","v":"Completion Status:"},{"$f":"'Project Information and TOC'!C8","v":1}]
["Instrumentation Drawings Review Checklist"]
["Item","Typically Required Drawing Content","Design Stage","YES, NO, N/A","Reference","Reviewer Comments","Engineer Responses","Reviewer Follow-Up Comments","Resolved?"]
["Instrumentation Plan","Existing and proposed instrumention locations?",null,null,"36.14.306 (1)(b)"]
[null,"Instrumentation type and name?",null,null,"N/A"]
[null,"Legend with symbols differing for each instrumentation type?",null,null,"N/A"]
[null,"Coordinates and elevations for each instrument (called out individually or combined in table)?",null,null,"N/A"]
[null,null,null,null,"N/A"]
["Staff Gages","Located to be legible and visible from safe location (i.e. abutment(s))?",null,null,"N/A"]
[null,"Gage marked each foot and graduated in 10th of feet? ",null,null,"N/A"]
[null,"Gage markings matching true survey elevations? ",null,null,"N/A"]
[null,"Gage extends above EAP trigger elevations?",null,null,"N/A"]
[null,"Gage mounted to limit ice or flood damage?",null,null,"N/A"]
["Piezometers","Number of instruments and their locations capturing embankment and foundation areas of interest? ",null,null,"36.14.306 (1)(b)"]
[null,"Instruments colocated along a cross section (crest, downstream slope and toe)?",null,null,"N/A"]
[null,"Piezometer type and dimensions shown?",null,null,"N/A"]
[null,"Completion details provided for flush mount or stick up to protect instrument?",null,null,"N/A"]
[null,"Security features included to limit public access and damage from dam maintenance work?",null,null,"N/A"]
["Survey Monuments and Benchmarks","Permenent benchmarks located in abutment rock or below frost depth, and outside dam footprint?",null,null,"N/A"]
[null,"Survey monuments in accessible locations?",null,null,"N/A"]
[null,"Survey monuments in embankment representing changing subsurface geometries?",null,null,"N/A"]
[null,"Survey monuments installed below frost depth?",null,null,"N/A"]
[null,"Survey benchmarks and monuments marked to avoid damage during site maintenance work?",null,null,"N/A"]
["Seepage Weirs","Weir rating curve shown?",null,null,"N/A"]
[null,"Weir sized appropriately for anticipated flow?",null,null,"N/A"]
[null,"Weir gage legible and easy access for reading?",null,null,"N/A"]
[null,"Weir removable or accesible for cleaning?",null,null,"N/A"]
[null,"Security features included to limit public access and damage from dam maintenance work?",null,null,"N/A"]
["Station Markers","Station labels matching stationing shown on drawing?",null,null,"N/A"]
[null,"Located outside way of travel?",null,null,"N/A"]
[null,"Legible/visible from dam crest? ",null,null,"N/A"]
[null,null,null,null,"N/A"]
[null,null,null,null,"N/A"]
["(User Defined Item)",null,null,null,"N/A"]
[null,null,null,null,"N/A"]
[null,null,null,null,"N/A"]
[null,null,null,null,"N/A"]
[null,null,null,null,"N/A"]
["(User Defined Item)",null,null,null,"N/A"]
[null,null,null,null,"N/A"]
[null,null,null,null,"N/A"]
[null,null,null,null,"N/A"]
[null,null,null,null,"N/A"]

{"sheet":"Miscellaneous Drawings","index":7,"n_rows":26,"n_cols":9,"rows_kept":26,"cut":false,"hidden":false,"merged":[[25,0,29,0],[3,0,3,8],[5,0,9,0],[10,0,14,0],[15,0,19,0],[20,0,24,0]]}
[null,{"$f":"'Project Information and TOC'!$B3","v":"Dam Name/ID: "},{"$f":"IF(ISBLANK('Project Information and TOC'!C3),\"\",'Project Information and TOC'!C3)","v":"Dam Name"},null,{"$f":"'Project Information and TOC'!B6","v":"Owner:"},{"$f":"'Project Information and TOC'!C6","v":"Dam Owner"}]
[null,{"$f":"'Project Information and TOC'!$B4","v":"Project Name: "},{"$f":"IF(ISBLANK('Project Information and TOC'!C4),\"\",'Project Information and TOC'!C4)","v":"Project Name"},null,{"$f":"'Project Information and TOC'!B7","v":"Engineer:"},{"$f":"'Project Information and TOC'!C7","v":"Engineer"}]
[null,{"$f":"'Project Information and TOC'!$B5","v":"Date:"},{"$f":"IF(ISBLANK('Project Information and TOC'!C5),\"\",'Project Information and TOC'!C5)","v":"xx/xx/20xx"},null,{"$f":"'Project Information and TOC'!B8","v":"Completion Status:"},{"$f":"'Project Information and TOC'!C8","v":1}]
["Miscellaneous Drawings Review Checklist"]
["Item","Typically Required Drawing Content","Design Stage","YES, NO, N/A","Reference","Reviewer Comments","Engineer Responses","Reviewer Follow-Up Comments","Resolved?"]
["(User Defined Item)"]
[]
[]
[]
[]
["(User Defined Item)"]
[]
[]
[]
[]
["(User Defined Item)"]
[]
[]
[]
[]
["(User Defined Item)"]
[]
[]
[]
[]
["(User Defined Item)"]

{"sheet":"Project Specific Drawings","index":8,"n_rows":26,"n_cols":9,"rows_kept":26,"cut":false,"hidden":false,"merged":[[25,0,29,0],[3,0,3,8],[5,0,9,0],[10,0,14,0],[15,0,19,0],[20,0,24,0]]}
[null,{"$f":"'Project Information and TOC'!$B3","v":"Dam Name/ID: "},{"$f":"IF(ISBLANK('Project Information and TOC'!C3),\"\",'Project Information and TOC'!C3)","v":"Dam Name"},null,{"$f":"'Project Information and TOC'!B6","v":"Owner:"},{"$f":"'Project Information and TOC'!C6","v":"Dam Owner"}]
[null,{"$f":"'Project Information and TOC'!$B4","v":"Project Name: "},{"$f":"IF(ISBLANK('Project Information and TOC'!C4),\"\",'Project Information and TOC'!C4)","v":"Project Name"},null,{"$f":"'Project Information and TOC'!B7","v":"Engineer:"},{"$f":"'Project Information and TOC'!C7","v":"Engineer"}]
[null,{"$f":"'Project Information and TOC'!$B5","v":"Date:"},{"$f":"IF(ISBLANK('Project Information and TOC'!C5),\"\",'Project Information and TOC'!C5)","v":"xx/xx/20xx"},null,{"$f":"'Project Information and TOC'!B8","v":"Completion Status:"},{"$f":"'Project Information and TOC'!C8","v":1}]
["Project Specific Drawings Review Checklist"]
["Item","Typically Required Drawing Content","Design Stage","YES, NO, N/A","Reference","Reviewer Comments","Engineer Responses","Reviewer Follow-Up Comments","Resolved?"]
["(User Defined Item)"]
[]
[]
[]
[]
["(User Defined Item)"]
[]
[]
[]
[]
["(User Defined Item)"]
[]
[]
[]
[]
["(User Defined Item)"]
[]
[]
[]
[]
["(User Defined Item)"]

{"sheet":"Agency Specific Drawings","index":9,"n_rows":26,"n_cols":9,"rows_kept":26,"cut":false,"hidden":false,"merged":[[25,0,29,0],[3,0,3,8],[5,0,9,0],[10,0,14,0],[15,0,19,0],[20,0,24,0]]}
[null,{"$f":"'Project Information and TOC'!$B3","v":"Dam Name/ID: "},{"$f":"IF(ISBLANK('Project Information and TOC'!C3),\"\",'Project Information and TOC'!C3)","v":"Dam Name"},null,{"$f":"'Project Information and TOC'!B6","v":"Owner:"},{"$f":"'Project Information and TOC'!C6","v":"Dam Owner"}]
[null,{"$f":"'Project Information and TOC'!$B4","v":"Project Name: "},{"$f":"IF(ISBLANK('Project Information and TOC'!C4),\"\",'Project Information and TOC'!C4)","v":"Project Name"},null,{"$f":"'Project Information and TOC'!B7","v":"Engineer:"},{"$f":"'Project Information and TOC'!C7","v":"Engineer"}]
[null,{"$f":"'Project Information and TOC'!$B5","v":"Date:"},{"$f":"IF(ISBLANK('Project Information and TOC'!C5),\"\",'Project Information and TOC'!C5)","v":"xx/xx/20xx"},null,{"$f":"'Project Information and TOC'!B8","v":"Completion Status:"},{"$f":"'Project Information and TOC'!C8","v":1}]
["Agency Specific Drawings Review Checklist"]
["Item","Typically Required Drawing Content","Design Stage","YES, NO, N/A","Reference","Reviewer Comments","Engineer Responses","Reviewer Follow-Up Comments","Resolved?"]
["(User Defined Item)"]
[]
[]
[]
[]
["(User Defined Item)"]
[]
[]
[]
[]
["(User Defined Item)"]
[]
[]
[]
[]
["(User Defined Item)"]
[]
[]
[]
[]
["(User Defined Item)"]

{"sheet":"References","index":10,"n_rows":123,"n_cols":2,"rows_kept":123,"cut":false,"hidden":false,"merged":[[86,0,86,1],[93,0,93,1],[97,0,97,1],[80,0,80,1],[81,0,81,1],[82,0,82,1],[121,0,121,1],[39,0,39,1],[40,0,40,1],[0,0,1,1],[3,0,3,1],[4,0,4,1],[12,0,12,1],[13,0,13,1],[36,0,36,1],[118,0,118,1],[102,0,102,1],[103,0,103,1],[111,0,111,1],[69,0,69,1],[79,0,79,1],[85,0,85,1]]}
[]
[]
[]
["References"]
["ADDITIONAL REFERENCES AND RESOURCES FOR DAM CONSTRUCTION DRAWINGS"]
["NMOSE","New Mexico Office of the State Engineer (2008), Construction Drawings for Dams."]
["NMOSE","New Mexico Office of the State Engineer (2015), Project Submittal Checklist for Dams - Construction Drawings & Specifications"]
["MDNR","Montana Department of Natural Resources (2019), Design Review Process Manual for Dam Projects."]
["CDWR","Colorado Division of Water Resources (2019), Rules and Regulations for Dam Safety and Dam Construction"]
["CDWR","Colorado Division of Water Resources (2014), Project Review Guide."]
["USBR","U.S. Dept. of the Interior, Bureau of Reclamation (1987), Design of Small Dams, 3rd Ed."]
[]
["EARTHWORK"]
["American Society for Testing and Materials International (ASTM)"]
["ASTM C 33","Standard Specification for Concrete Aggregates."]
["ASTM C 88","Standard Test Method for Soundness of Aggregates by Use of Sodium Sulfate or Magnesium Sulfate."]
["ASTM C 117","Standard Test Method for Materials Finer than 75-μm (No. 200) Sieve in Mineral Aggregates by Washing."]
["ASTM C 127","Standard Test Method for Specific Gravity and Absorption of Coarse Aggregate."]
["ASTM C 131","Standard Test Method for Resistance to Degradation of Small-Size Coarse Aggregate by Abrasion and Impact in the Los Angeles Machine."]
["ASTM C 136","Standard Test Method for Sieve Analysis of Fine and Coarse Aggregates."]
["ASTM C 535","Standard Test Method for Resistance to Degradation of Large-Size Coarse Aggregate by Abrasion and Impact in the Los Angeles Machine.  "]
["ASTM D 75","Standard Practice for Sampling Aggregates"]
["ASTM D 422","Standard Test Method for Particle-Size Analysis of Soils"]
["ASTM D 698 ","Test Method for Laboratory Compaction Characteristics of Soil Using Standard Effort (12,400 ft-lb/ft3)."]
["ASTM D 1140","Standard Test Methods for Amount of Material in Soils Finer than the No. 200 (75 µm) Sieve."]
["ASTM D 1556","Standard Test Method for Density and Unit Weight of Soil in Place by the Sand-Cone Method."]
["ASTM D 1557","Test Method for Laboratory Compaction Characteristics of Soil Using Modified Effort [56,000 ft-lbf/ft3 (2,700 kN-m/m3)]."]
["ASTM D 2216","Standard Test Method for Laboratory Determination of Water (Moisture) Content of Soil and Rock."]
["ASTM D 2487","Standard Classification of Soils for Engineering Purposes (Unified Soil Classification System)"]
["ASTM D 4318","Standard Test Method for Liquid Limit, Plastic Limit, and Plasticity Index of Soils."]
["ASTM D 4253","Standard Test Methods for Maximum Index Density and Unit Weight of Soils Using a Vibratory Table."]
["ASTM D 4254","Standard Test Methods for Minimum Index Density and Unit Weight of Soils and Calculation of Relative Density."]
["ASTM D 5030","Standard Test Method for Density of Soil and Rock in Place by the Water Replacement Method in a Test Pit."]
["ASTM D 5084","Measurement of Hydraulic Conductivity of Saturated Porous Materials Using a Flexible Wall Permeameter."]
["ASTM D 6938","Standard Test Method for In-Place Density and Water Content of Soil and Soil- Aggregate by Nuclear Methods (Shallow Depth)"]
[]
["American Association of State Highway and Transportation Officials (AASHTO)"]
["AASHTO T 272","Standard Method of Test for Family of Curves—One Point Method"]
[]
["CONCRETE"]
[" American Society for Testing and Materials International (ASTM)"]
["ASTM A 82","Standard Specifications for Steel Wire, Plain, for Concrete Reinforcement."]
["ASTM A 185","Standard Specification for Steel Welded Wire Reinforcement, Plain, for Concrete."]
["ASTM A 615","Standard Specification for Deformed and Plain Billet - Steel Bars for Concrete Reinforcement."]
["ASTM C 31","Standard Practice for Making and Curing Concrete Test Specimens in the Field"]
["ASTM C 33","Standard Specifications for Concrete Aggregates."]
["ASTM C 39","Standard Test Method for Compressive Strength of Cylindrical Concrete Specimens"]
["ASTM C 42","Standard Test Method for Obtaining and Testing Drilled Cores and Sawed Beams of Concrete"]
["ASTM C 94","Standard Specifications for Ready-Mixed Concrete"]
["ASTM C 114","Standard Test Methods for Chemical Analysis of Hydraulic Cements"]
["ASTM C 138","Standard Test Method for Density (Unit Weight), Yield, and Air Content (Gravimetric) of Concrete"]
["ASTM C 143","Standard Test Method for Slump of Hydraulic Cement Concrete"]
["ASTM C 150","Standard Specifications for Portland Cement."]
["ASTM C 171","Standard Specification for Sheet Materials for Curing Concrete."]
["ASTM C 172","Standard Practice for Sampling Freshly Mixed Concrete"]
["ASTM C 231","Standard Test Method for Air Content of Freshly Mixed Concrete by the Pressure Method"]
["ASTM C 260","Standard Specification for Air Entraining Admixtures for Concrete."]
["ASTM C 309","Specification for Liquid Membrane-Forming Compounds for Curing Concrete."]
["ASTM C 441","Standard Test Method for Effectiveness of Pozzolans or Ground Blast-Furnace Slag in Preventing Excessive Expansion of Concrete Due to the Alkali-Silica Reaction"]
["ASTM C 494","Standard Specification for Chemical Admixtures for Concrete."]
["ASTM C 618","Standard Specification for Coal Fly Ash and Raw or Calcined Natural Pozzolan for Use in Concrete."]
["ASTM C 1017","Standard Specification for Chemical for Use in Producing Flowing Concrete"]
["ASTM C 1064","Standard Test Method for Temperature of Freshly Mixed Hydraulic-Cement Concrete"]
["ASTM C 1260","Standard Test Method for Potential Alkali Reactivity of Aggregates (Mortar-Bar Method)"]
["ASTM C 1567","Standard Test Method for Determining the Potential Alkali-Silica Reactivity of Combinations of Cementitious Materials and Aggregate (Accelerated Mortar-Bar Method)"]
["ASTM C 1602","Standard Specification for Mixing Water Used in the Production of Hydraulic Cement Concrete"]
["ASTM D 1751","Standard Specification for Preformed Expansion Joint Filler for Concrete Paving and Structural Construction (Nonextruding and Resilient Bituminous Types)."]
["ASTM D 1752","Standard Specification for Preformed Sponge Rubber and Cork Expansion Joint Fillers for Concrete Paving and Structural Construction."]
[]
["American Concrete Institute (ACI)"]
["ACI 117","Standard Tolerances for Concrete Construction and Materials (ACI 117) and Commentary (ACI 117R-06)"]
["ACI 301","Specification for Structural Concrete."]
["ACI 305.1","Hot Weather Concreting."]
["ACI 306.1","Cold Weather Concreting."]
["ACI 308.1","Standard Specification for Curing Concrete."]
["ACI 315","Details and Detailing of Concrete Reinforcement."]
["ACI 318","Building Code Requirements for Structural Concrete."]
["ACI 350","Code Requirements for Environmental Concrete Structures and Commentary (ACI 350-06)"]
[]
["Concrete Reinforcing Steel Institute (CRSI)"]
["Manual of Standard Practice."]
["Placing Reinforcing Bars."]
["Reinforcing Bar Detailing Manual."]
[]
[]
["DRAIN PIPE"]
["American Society for Testing and Materials International (ASTM)"]
["ASTM D 2321","Underground Installation of Thermoplastic Pipe for Sewers and Other Gravity-Flow Applications"]
["ASTM D 3350","Standard Specification for Polyethylene Plastics Pipe and Fittings Materials"]
["ASTM F 477","Standard Specification for Elastomeric Seals (Gaskets) for Joining Plastic Pipe"]
["ASTM F 2306","Standard Specification for 12 to 60 in. [300 to 1500 mm] Annular Corrugated Profile- Wall Polyethylene (PE) Pipe and Fittings for Gravity-Flow Storm Sewer and Subsurface Drainage Applications"]
["ASTM F 2947","Standard Specification for 6 to 60 in. [150 to 1500 mm] Annular Corrugated Profile- Wall Polyethylene (PE) Pipe and Fittings for Gravity-Flow Storm Sewer and Subsurface Drainage Applications."]
[]
["American Association of State Highway and Transportation Officials (AASHTO)"]
["AASHTO M 252","Corrugated Polyethylene Drainage Pipe."]
["AASHTO M 294","Standard Specification for Corrugated Polyethylene Pipe, 300- to 1500-mm Diameter."]
[]
["QUALITY CONTROL"]
["ASTM C 1077","Agencies Testing Concrete and Concrete Aggregates for Use in Construction and Criteria for Testing Agency Evaluation"]
["ASTM D 3740","Standard Practice for Minimum Requirements for Agencies Engaged in the Testing and/or Inspection of Soil and Rock as Used in Engineering Design and Construction."]
["ASTM E 329","Standard Specification for Agencies Engaged in Construction Inspection, Testing, or Special Inspection"]
[]
["STEEL PIPE"]
["American Water Works Association (AWWA)"]
["AWWA C200","Steel Water Pipe—6 In. (150 mm) and Larger"]
["AWWA C206","Field Welding of Steel Water Pipe"]
["AWWA C207","Steel Pipe Flanges for Waterworks Service, Sizes 4 In. Through144 In. (100 mm Through 3,600 mm)"]
["AWWA C208","Underground Installation of Thermoplastic Pipe for Sewers and Other Gravity-Flow Applications"]
["AWWA C210","Liquid-Epoxy Coating Systems for the Interior and Exterior of Steel Water Pipelines"]
["AWWA C222","Polyurethane Coatings for the Interior and Exterior of Steel Water Pipe and Fittings"]
["AWWA M11","Steel Pipe-A Guide for Design and Installation"]
["American Society for Testing and Materials International (ASTM)"]
["ASTM A 36","Specification for Carbon Structural Steel"]
["ASTM A 283","Specification for Low and Intermediate Tensile Strength Carbon Steel Plates, Shapes, and Bars"]
["ASTM A572","Specification for High-Strength Low Alloy Columbium-Vanadium Steels of Structural Quality"]
["ASTM E 164","Contact Ultrasonic Testing of Weldments"]
["ASTM E 165","Liquid Penetrant Examination for General Industry"]
["ASTM 709"," Standard Guide for Magnetic Particle Examination "]
["American Society of Mechanical Engineers (ASME)"]
["ASME Section V","Nondestructive Testing Examination"]
["ASME Section IX","Welding and Brazing Qualifications"]
["American Welding Society (AWS)"]
["AWS D1.1","Structural Welding Code - Steel"]

{"sheet":"Comment Tracking","index":11,"n_rows":23,"n_cols":5,"rows_kept":23,"cut":false,"hidden":true,"merged":[]}
[null,"Construction Plan Review Toolbox","Version:","01"]
[]
[null,"Comments:","Tool Revision","Date Received","Date Resolved"]
[1,"For comments – change to dnrdamsafety@mt.gov, instead of my email address.","Beta 01","2021-05-26","2021-06-07"]
[2,"I am thinking how to keep the review back and forth comments organized as we review 30%, 60% . 90% etc, without having multiple spreadsheets.  One suggestion that may work:  Add column to left of yes/No NA, maybe in different color with title “Design Stage”; The drop down choices below this new column should include All, NA, 30%, 60%, 90%, 100%, Bid.  We could then remove completion status from project info page and titles on sheets.  This way, there would be three spreadsheets for each permit review (specs, plans, design report), rather than potentially up to 12 different sheets.\n- Hitting N/A would also fill in Design Stage Column.","Beta 01","2021-05-26","2021-06-07"]
[3,"Change the column heading “MT DNRC rules and Regs / Permit #, etc. “  to “Reference”.  Provides more flexibility.","Beta 01","2021-05-26","2021-06-07"]
[4,"Resolved Yes/No drop down doesn’t work ","Beta 01","2021-05-26","2021-06-07"]
[5,"I really like there is lots of extra room to add things unique to project in each section.","Beta 01","2021-05-26","2021-06-07"]
[6,"Hide option box sheet","Beta 01","2021-05-26","2021-06-07"]
[7,"General Considerations - Yes/no/Na drop down doesn’t work.","Beta 01","2021-05-26","2021-06-07"]
[8,"Copy/paste error on several sheets - the title “Typical Required Specification Content” needs to be changed to “Typically Required Drawing Content”","Beta 01","2021-05-26","2021-06-07"]
[9]
[10]
[11]
[12]
[13]
[14]
[15]
[16]
[17]
[18]
[19]
[20]

{"sheet":"OPTIONBOX","index":12,"n_rows":8,"n_cols":3,"rows_kept":8,"cut":false,"hidden":true,"merged":[]}
["Options","Note","Design Stage"]
["Yes","These are used for the data validation drop downs.",0.3]
["No",null,0.6]
["N/A",null,0.9]
[null,null,1]
[null,null,"All"]
[null,null,"N/A"]
[null,null,"Bid"]